[Event "Summer Prague Open-A 2022"]
[Site "Prague"]
[Date "2022.08.11"]
[Round "8.4"]
[White "Roubalik, Jakub"]
[Black "Lalic, Bogdan"]
[Result "1/2-1/2"]
[ECO "A45"]
[WhiteElo "2380"]
[BlackElo "2412"]
[Annotator "TA"]
[PlyCount "41"]
[EventDate "2022.08.05"]
[EventType "swiss"]
[EventCountry "CZE"]
[SourceTitle "playchess.com"]
[Source "ChessBase"]
[SourceQuality "1"]
[TimeControl "40/5400+30:1800+30"]

{[%evp 9,28,-28,-27,-27,-10,-17,-23,-44,-28,-71,-69,-69,-72,-77,-66,-80,-66,-60,-62,-78,-60]} 1. d4 {[%emt 0:00:03]} Nf6 {[%emt 0:03:26]} 2. Bg5 {[%emt 0:00:13]} c5 {[%emt 0:00:08]} 3. d5 {[%emt 0:00:18]} Ne4 {[%emt 0:00:11]} 4. Bf4 {[%emt 0:00:24]} Qb6 {[%emt 0:00:21]} 5. Nd2 {[%emt 0:01:12] [#]} Qxb2 $1 {[%emt 0:02:17] ...Nc3 is the strong threat.} 6. Nxe4 {[%emt 0:01:38] Threatens to win with Nf3. A45: Trompowsky Attack.} Qb4+ {[%emt 0:00:06]} 7. c3 {[%emt 0:01:14]} Qxe4 {[%emt 0:00:07]} 8. e3 {[%emt 0:00:48] Black has an edge.} g5 {[%emt 0:01:30]} 9. Bg3 {[%emt 0:01:22]} Bg7 {[%emt 0:00:18]} 10. Rc1 {[%emt 0:01:08]} d6 {[%emt 0:05:18]} 11. Nf3 {[%emt 0:03:14] [#]} Qg6 {[%emt 0:02:30]} 12. Bd3 {[%emt 0:06:28]} f5 {[%emt 0:04:56]} 13. h4 {[%emt 0:07:24]} h6 {[%emt 0:00:20]} 14. Qc2 {[%emt 0:22:11]} O-O {[#]  Weighted Error Value: White=0.05 (flawless) /Black=0.00 (flawless)} {Predecessor:} 15. hxg5 $146 hxg5 16. c4 Na6 17. a3 Nc7 18. Rb1 b5 19. cxb5 Nxd5 20. Bc4 Be6 21. Rd1 {0-1 (55) Alarcon Casellas,R (2387)-Adly,A (2626) Sitges 2018} 1/2-1/2

[Event "Summer Prague Open-A 2022"]
[Site "Prague"]
[Date "2022.08.11"]
[Round "8.5"]
[White "Kaspi, Alexander"]
[Black "Brejnik, Gustav"]
[Result "1-0"]
[ECO "D11"]
[WhiteElo "2414"]
[BlackElo "2292"]
[Annotator "TA"]
[PlyCount "151"]
[EventDate "2022.08.05"]
[EventType "swiss"]
[EventCountry "CZE"]
[SourceTitle "playchess.com"]
[Source "ChessBase"]
[SourceQuality "1"]
[TimeControl "40/5400+30:1800+30"]

{[%evp 13,151,6,6,12,14,0,0,0,0,0,0,0,48,28,53,40,77,75,80,88,85,85,79,71,73,84,89,96,94,66,88,85,107,65,103,60,60,33,42,39,29,22,33,33,33,22,68,65,108,98,109,99,120,14,0,-10,-39,-60,-94,-114,0,0,0,0,0,0,0,0,0,0,0,0,0,0,0,0,0,0,0,0,0,0,0,0,0,0,73,89,86,0,0,0,79,67,318,333,341,323,331,325,324,323,322,321,298,304,633,383,333,316,308,280,404,406,386,394,701,689,690,682,668,668,662,540,655,660,655,636,614,598,785,627,29989,29990,29990,29966,29991,29992,29994,29995]} 1. d4 {[%emt 0:00:04] ChessBase II} d5 {[%emt 0:00:05]} 2. c4 {[%emt 0:00:08]} c6 {[%emt 0:00:03]} 3. Nf3 {[%emt 0:00:07]} Nf6 {[%emt 0:00:05]} 4. Qb3 {[%emt 0:00:36]} dxc4 {[%emt 0:00:16]} 5. Qxc4 {[%emt 0:00:06]} Bf5 {[%emt 0:00:03]} 6. g3 {[%emt 0:00:12]} e6 {[%emt 0:00:06]} 7. Bg2 {[%emt 0:00:06]} Be7 {[%emt 0:00:04]} 8. O-O {[%emt 0:00:08] D23: Queen's Gambit Accepted: 3 Nf3 Nf6 sidelines.} O-O {[%emt 0:00:04]} 9. Nbd2 {[%emt 0:00:20]} Nbd7 {[%emt 0:28:11]} 10. Qb3 {[%emt 0:00:26] The position is equal.} Nb6 {[%emt 0:02:29]} 11. a4 {[%emt 0:03:13]} a5 {[%emt 0:00:17]} 12. Rd1 {[%emt 0:00:19] [#]} Ne4 $146 {[%emt 0:14:40]} (12... Nfd7 $11) ({Predecessor:} 12... Nfd7 13. e4 Bg6 14. Qe3 f5 15. Qb3 Kh8 16. exf5 Bxf5 17. Nc4 Bg4 18. Nxb6 Qxb6 {½-½ (52) Eljanov,P (2732)-Motylev,A (2685) Shamkir 2014 CBM 160 [ChessBase II]}) 13. Nf1 {[%emt 0:02:39]} (13. Ne5 $5 {[%cal Rd2e4]} Nf6 14. e4 $14) 13... h6 {[%emt 0:15:01]} 14. Ne5 {[%emt 0:04:06]} Bh7 {[%emt 0:06:41]} 15. f3 {[%emt 0:02:32]} Nd6 {[%emt 0:00:03]} 16. e4 {[%emt 0:00:40] Inhibits Nf5.} Nd7 {[%emt 0:00:14]} 17. Be3 {[%emt 0:04:08] White is more active.} Qb6 {[%emt 0:07:03]} 18. Qa2 {[%emt 0:04:12]} Qc7 {[%emt 0:00:44]} 19. Nd3 {[%emt 0:06:29]} b6 {[%emt 0:03:00]} 20. Rac1 {[%emt 0:01:45]} Qb7 {[%emt 0:00:02]} 21. Rc3 {[%emt 0:13:07]} Rfc8 {[%emt 0:00:32]} 22. Rdc1 {[%emt 0:02:54]} Ne8 {[%emt 0:00:10]} 23. b3 {[%emt 0:01:29]} Nef6 {[%emt 0:02:25]} 24. Qf2 {[%emt 0:10:11]} Nb8 {[%emt 0:01:26]} 25. g4 {[%emt 0:02:35]} Na6 {[%emt 0:00:33]} 26. h4 {[%emt 0:00:22]} Nb4 {[%emt 0:00:49]} 27. Nxb4 {[%emt 0:07:56]} Bxb4 {[%emt 0:01:19]} 28. R3c2 {[%emt 0:00:23]} Ba3 {[%emt 0:00:06]} 29. Ra1 {[%emt 0:01:01]} Be7 {[%emt 0:00:13]} (29... Bb4 $11) 30. g5 $14 {[%emt 0:00:58]} hxg5 {[%emt 0:00:04]} 31. hxg5 {[%emt 0:00:06]} Nd7 {[%emt 0:05:00]} 32. f4 {[%emt 0:02:16][%cal Bf3f4,Bf4f5][%mdl 32]} c5 {[%emt 0:01:00]} 33. g6 {[%emt 0:05:32]} (33. d5 $1 $16 {[%cal Rd5e6]}) 33... Bxg6 $11 {[%emt 0:00:20]} 34. f5 {[%emt 0:00:06]} Bh7 {[%emt 0:07:46]} 35. e5 {[%emt 0:01:10]} Qb8 {[%emt 0:00:01][%cal Oh7f5]} 36. Bxa8 {[%emt 0:00:53] Be4 is the strong threat.} Qxa8 {[%emt 0:00:07]} (36... Bxf5 $17 37. Bc6 Rxc6) 37. Ng3 {[%emt 0:00:14]} Bh4 {[%emt 0:02:07] And now ...exf5 would win.} 38. Qf4 $36 {[%emt 0:01:19][%mdl 2048] White has the initiative.} Bxg3 {[%emt 0:00:28]} 39. Qxg3 {[%emt 0:00:07]} Bxf5 {[%emt 0:00:28]} 40. Rg2 {[%emt 0:01:19][%csl Gg2][%cal Rg3g7]} Bg6 {[%emt 0:00:59]} 41. Rf1 {[%emt 0:42:46][%cal Of1f7,Ba1f1,Bf1f4,Bf4d4,Bd4d6][%mdl 32] aiming for Rxf7!} Qe4 {[%emt 0:06:07]} 42. Rf4 {[%emt 0:00:00]} Qb1+ {[%emt 0:02:07]} 43. Kh2 {[%emt 0:00:00][%cal Od4d5]} cxd4 {[%emt 0:03:39]} 44. Rxd4 {[%emt 0:00:00]} Nf8 {[%emt 0:10:24]} ({Don't do} 44... Nc5 45. Rgd2 Rf8 46. Rh4 $14) 45. Bd2 {[%emt 0:00:00]} Qd1 {[%emt 0:01:24]} 46. Rd6 {[%emt 0:00:00]} Qh5+ {[%emt 0:00:53]} 47. Kg1 {[%emt 0:00:00]} Qd1+ {[%emt 0:06:04]} 48. Kh2 {[%emt 0:00:00]} Qh5+ {[%emt 0:00:44]} 49. Kg1 {[%emt 0:00:00]} Rc2 {[%emt 0:01:36]} (49... Qd1+ $11 50. Kh2) 50. Rd8 $16 {[%emt 0:00:00][%mdl 1024] White has strong compensation.} Qd1+ {[%emt 0:00:13]} 51. Kh2 {[%emt 0:00:00] Strongly threatening Qh4.} Qh5+ {[%emt 0:00:04]} 52. Kg1 {[%emt 0:00:00]} Qd1+ $1 {[%emt 0:00:07] [#]} 53. Qe1 $1 {[%emt 0:02:25]} Qf3 {[%emt 0:01:06][%mdl 8192] This move loses the game for Black.} (53... Qh5 $1 $14) 54. Qh4 $18 {[%emt 0:00:47][%cal Od8f8] White wants to mate with Rxf8+!} Qd1+ {[%emt 0:01:49]} (54... Qc6 $2 55. b4 axb4 {[#]} 56. Rxf8+ $1 {[%mdl 512]} Kxf8 57. Qd8+ Qe8 58. Bxb4+ Rc5 59. Qxb6 $18) 55. Kh2 {[%emt 0:01:22][%cal Od8f8] Rxf8+! would kill now. Really sharp!} Qh5 {[%emt 0:00:39]} 56. Qxh5 {[%emt 0:00:27]} Bxh5 {[%emt 0:00:01]} 57. Bg5 {[%emt 0:03:12]} Rc7 {[%emt 0:00:37]} 58. Rgd2 {[%emt 0:01:16]} f6 {[%emt 0:00:50]} 59. exf6 {[%emt 0:00:07]} Kf7 $2 {[%emt 0:00:49]} (59... Rf7 60. R2d6 Kh7 61. fxg7 Kxg7) 60. fxg7 {[%emt 0:00:55]} Kxg7 {[%emt 0:00:04]} 61. Bf4 {[%emt 0:00:34]} Rf7 {[%emt 0:00:30]} 62. Be5+ {[%emt 0:02:21]} Kh7 {[%emt 0:00:27]} (62... Kg6 {keeps fighting.} 63. Bd4 Nh7 64. Bxb6 Nf6 65. Bxa5 Bf3) 63. Bd4 {[%emt 0:01:02]} Ng6 {[%emt 0:00:21]} 64. Rf2 {[%emt 0:00:31]} Rb7 $2 {[%emt 0:02:03]} (64... Re7 65. Rd6 Kg8 66. Rxb6 e5) 65. Kg3 {[%emt 0:01:02] Threatens to win with Rh2.} e5 {[%emt 0:00:15]} 66. Rh2 {[%emt 0:01:14]} exd4 {[%emt 0:00:49]} 67. Rxh5+ {[%emt 0:00:05][%mdl 4096] Endgame KRR-KRN} Kg7 {[%emt 0:00:02]} 68. Rd6 {[%emt 0:00:18] Black must now prevent Rg5.} Ne7 {[%emt 0:00:40]} 69. Rb5 {[%emt 0:01:11]} Nc8 {[%emt 0:00:39]} 70. Rc6 {[%emt 0:00:29]} Rb8 {[%emt 0:00:04]} 71. Kf4 {[%emt 0:01:36] Hoping for Rc7+.} Kf7 {[%emt 0:00:01]} 72. Ke5 {[%emt 0:00:25]} Ke7 {[%emt 0:00:06]} 73. Rc7+ {[%emt 0:00:10] White mates.} Kd8 {[%emt 0:00:25]} 74. Rh7 {[%emt 0:00:07]} Ne7 {[%emt 0:00:11]} 75. Kd6 {[%emt 0:00:45]} Nc8+ {[%emt 0:00:02]} 76. Ke6 {[%emt 0:00:08] Weighted Error Value: White=0.13 (very precise) /Black=0.24 (precise)} 1-0

[Event "Summer Prague Open-A 2022"]
[Site "Prague"]
[Date "2022.08.11"]
[Round "8.6"]
[White "Sarkar, Justin"]
[Black "Weishaeutel, Moritz"]
[Result "1/2-1/2"]
[ECO "B76"]
[WhiteElo "2346"]
[BlackElo "2400"]
[Annotator "TA"]
[PlyCount "81"]
[EventDate "2022.08.05"]
[EventType "swiss"]
[EventCountry "CZE"]
[SourceTitle "playchess.com"]
[Source "ChessBase"]
[SourceQuality "1"]
[TimeControl "40/5400+30:1800+30"]

{[%evp 30,81,0,0,0,12,45,62,51,6,12,0,15,0,0,0,0,-158,0,0,0,-7,0,0,0,0,0,-7,0,-50,0,0,16,0,0,-73,-60,-142,0,0,0,0,0,0,0,0,0,0,0,0,0,0,0,0]} 1. e4 {[%emt 0:00:12]} c5 {[%emt 0:00:06]} 2. Nf3 {[%emt 0:00:15]} d6 {[%emt 0:00:08]} 3. d4 {[%emt 0:00:32]} cxd4 {[%emt 0:00:06]} 4. Nxd4 {[%emt 0:00:07]} Nf6 {[%emt 0:00:08]} 5. Nc3 {[%emt 0:00:18]} g6 {[%emt 0:00:09]} 6. Be3 {[%emt 0:00:22]} Bg7 {[%emt 0:00:06]} 7. f3 {[%emt 0:00:48]} O-O {[%emt 0:00:09]} 8. Qd2 {[%emt 0:00:32]} Nc6 {[%emt 0:00:08]} 9. O-O-O {[%emt 0:01:30]} d5 {[%emt 0:00:06]} 10. Nxc6 {[%emt 0:03:25]} bxc6 {[%emt 0:00:23]} 11. exd5 {[%emt 0:00:15]} cxd5 {[%emt 0:00:10]} 12. Nxd5 {[%emt 0:00:16]} Nxd5 {[%emt 0:00:09]} 13. Qxd5 {[%emt 0:00:04]} Qc7 {[%emt 0:00:13]} 14. Qc5 {[%emt 0:00:10]} Qb7 {[%emt 0:00:11]} 15. Qa3 {[%emt 0:00:30]} Bf5 {[%emt 0:13:48]} 16. Bd3 {[%emt 0:00:13]} Rab8 {[%emt 0:00:33][%cal Rg7b2] B76: Sicilian Dragon: Yugoslav Attack, 9 g4 and 9 0-0-0.} 17. b3 {[%emt 0:00:29] next Bxf5 is good for White.} Rfc8 {[%emt 0:04:12] Threatens to win with ...Qc7.} (17... Qc6 $5 {[%cal Rc6c3]} 18. Qa5 (18. Bxa7 $2 Ra8 $19) (18. Bxf5 Qc3 $15) 18... Qf6 19. Bxf5 (19. c3 Rfc8 $17) 19... Qb2+ 20. Kd2 gxf5 $11) 18. Bxf5 {[%emt 0:01:44]} (18. Qxa7 Qb5 $1 19. Kb1 (19. Bxb5 $2 Rxc2+ 20. Kb1 Rc4+) 19... Qc6 20. Bxf5 gxf5 $17) (18. Bxa7 $2 Ra8 19. Bxf5 gxf5 $19) 18... gxf5 {[%emt 0:00:08] White is slightly better.} 19. Qa5 {[%emt 0:30:46]} Qc6 $1 {[%emt 0:07:24][%csl Gc8][%cal Rc6c2]} 20. c4 {[%emt 0:05:52] Active counter play!} (20. c3 Bxc3 21. Qxf5 Rb5 $19) 20... Qe6 $1 {[%emt 0:05:27]} (20... Qf6 21. Bd4 Qg5+ 22. Kb1 $16 (22. Qd2 Qxd2+ 23. Rxd2 Bh6 $11)) 21. Rhe1 {[%emt 0:11:41] Hoping for Bf4.} (21. Qd2 $2 Rxc4+ $1 {[%mdl 512]} 22. bxc4 Qxc4+ 23. Qc2 Bb2+ 24. Kd2 Rd8+ 25. Ke1 Qxc2 $19) 21... Rxc4+ {[%emt 0:11:05]} 22. Kb1 {[%emt 0:00:09]} (22. bxc4 $2 Qxc4+ 23. Kd2 Rb2#) 22... Rcc8 {[%emt 0:02:36][%cal Ob8b3] Inhibits Rd8+.} 23. Qd5 {[%emt 0:13:00] [#]} (23. Bd4 Rxb3+ $1 {[%mdl 512]} 24. axb3 Qxb3+ 25. Ka1 Rc1+ $3 {[%mdl 512]} 26. Rxc1 Bxd4+) (23. Rd3 $1 $11) 23... Qg6 $146 {[%emt 0:03:53]} (23... Qf6 24. Bd4 Qg6 25. Bxg7 $14 (25. Rxe7 f4+ 26. Ka1 Rc2 $11)) (23... Qa6 $1 $17 {White must now prevent ...Rb5.} 24. Bd4 e6) ({Predecessor:} 23... Qa6 24. Qd3 Qa3 25. Re2 a5 26. Rc2 h6 27. Bf4 Rd8 28. Qxd8+ Rxd8 29. Rxd8+ Kh7 {½-½ (55) Kokarev,D (2469)-Timofeev,A (2496) Kazan 2001}) 24. Bf4 $1 $11 {[%emt 0:02:37]} e6 {[%emt 0:06:43]} ({Much less strong is} 24... Qxg2 25. Rd2 Qg6 26. Bxb8 Rxb8 27. Qd7 $16 (27. Rxe7 Qf6 $16)) 25. Qd7 $132 {[%emt 0:02:48][%mdl 2048] White is fighting back} Qxg2 {[%emt 0:09:50][%csl Gg7][%cal Rg2b2]} 26. Rd2 {[%emt 0:01:06] Inhibits Qb2+.} Qxf3 {[%emt 0:00:06] ( -> ...Rxb3+)} 27. Bxb8 {[%emt 0:00:19]} Rxb8 {[%emt 0:00:08]} 28. Qc7 {[%emt 0:15:42]} Rf8 {[%emt 0:02:47]} 29. Rd8 {[%emt 0:00:48]} (29. Rc2 $11) 29... Qf2 {[%emt 0:02:50]} ({Black should play} 29... h5 $1 $15) 30. Rxf8+ {[%emt 0:01:48]} Bxf8 {[%emt 0:00:04][%mdl 4096] Endgame KQR-KQB} 31. Rd1 {[%emt 0:00:09]} f4 {[%emt 0:00:46]} 32. Rd8 {[%emt 0:01:53] [#]} (32. Qb8 $11 {remains equal.}) 32... Qg1+ $1 $17 {[%emt 0:00:22]} ({But not} 32... Qxh2 33. Rxf8+ (33. Qc5 Qh1+ 34. Kc2 Qg2+ 35. Kc1 Qg7 $11) 33... Kxf8 34. Qd8+ Kg7 35. Qg5+ Kh8 36. Qf6+ Kg8 37. Qg5+ Kf8 38. Qd8+ Kg7 39. Qg5+ Kh8 40. Qf6+ Kg8 41. Qg5+ Kf8 42. Qd8+ $11) 33. Qc1 {[%emt 0:04:17]} (33. Kb2 $15) 33... Qxh2 {[%emt 0:01:58]} (33... Qg6+ $17 34. Qc2 Kg7) 34. Qc5 $11 {[%emt 0:00:34][%csl Gd8][%cal Rc5f8] The position is equal.} Qh1+ {[%emt 0:00:21]} 35. Kc2 {[%emt 0:00:26][%csl Gd8][%cal Rc5f8]} Qg2+ {[%emt 0:00:28]} 36. Kd3 {[%emt 0:02:19][%csl Gd8][%cal Rc5f8] Dancing on a razor blade.} Qg6+ {[%emt 0:01:32]} 37. Kd2 {[%emt 0:00:14][%csl Gd8][%cal Rc5f8]} Qg7 {[%emt 0:02:55][%cal Oh7h5]} 38. Rxf8+ {[%emt 0:00:09]} Qxf8 {[%emt 0:00:10]} 39. Qg5+ {[%emt 0:00:02]} Qg7 {[%emt 0:00:25]} 40. Qd8+ {[%emt 0:00:03]} Qf8 {[%emt 0:00:12]} 41. Qg5+ {[%emt 0:30:01] Weighted Error Value: White=0.20 (precise) /Black=0.17 (very precise)} 1/2-1/2

[Event "Summer Prague Open-A 2022"]
[Site "Prague"]
[Date "2022.08.11"]
[Round "8.7"]
[White "Nemeth, Zalan"]
[Black "Hrabusa, Matej"]
[Result "0-1"]
[ECO "A11"]
[WhiteElo "2194"]
[BlackElo "2354"]
[Annotator "TA"]
[PlyCount "68"]
[EventDate "2022.08.05"]
[EventType "swiss"]
[EventCountry "CZE"]
[SourceTitle "playchess.com"]
[Source "ChessBase"]
[SourceQuality "1"]
[TimeControl "40/5400+30:1800+30"]

{[%evp 12,68,15,5,10,0,0,0,0,0,0,0,0,0,0,0,0,0,0,0,0,0,0,0,3,4,4,4,5,-79,-84,-102,-87,-178,-185,-339,-333,-445,-448,-494,-509,-524,-500,-645,-318,-323,-315,-483,-310,-513,-518,-509,-502,-5314,-5297,-2098,-1977,-29994,-29995]} 1. c4 {[%emt 0:00:02]} c6 {[%emt 0:00:08]} 2. g3 {[%emt 0:00:12]} d5 {[%emt 0:00:06]} 3. Nf3 {[%emt 0:00:02]} Nf6 {[%emt 0:00:10]} 4. Bg2 {[%emt 0:00:04]} dxc4 {[%emt 0:00:17]} 5. O-O {[%emt 0:00:13]} Nbd7 {[%emt 0:00:17]} 6. Qc2 {[%emt 0:00:17]} Nb6 {[%emt 0:00:29]} 7. Na3 {[%emt 0:04:47]} Be6 {A11: English Opening: 1...c6.} 8. Ne5 {[%emt 0:04:20]} h5 {[%emt 0:02:00] 8...h5 scores better than 8...Qd4.} 9. h4 {[%emt 0:02:06][%cal Ra3c4]} Ng4 {The position is equal.} 10. Naxc4 {[%emt 0:02:15]} Nxc4 {[%emt 0:01:12]} 11. Nxc4 {[%emt 0:00:05]} g5 {[%emt 0:00:25]} 12. hxg5 {[%emt 0:04:12]} Bg7 {[%emt 0:03:05]} 13. d3 h4 {[%emt 0:04:28]} 14. Bf4 {[%emt 0:09:32]} Bd5 {[%emt 0:05:05] [#]} 15. e4 $146 {[%emt 0:12:07]} ({Predecessor:} 15. gxh4 Rxh4 16. Bg3 Rh5 17. Qc1 Qc8 18. Qf4 Bxc4 19. Qxc4 Rxg5 20. d4 Bf6 21. e4 {½-½ (28) Compagnie,L (2396)-Schmalz,P (2309) ICCF email 2018}) 15... Be6 {[%emt 0:05:35]} 16. Ne3 {[%emt 0:18:44]} hxg3 {[%emt 0:14:55]} 17. Bxg3 {[%emt 0:01:17]} Qd4 {[%emt 0:10:55][%csl LRb2,LRe3]} 18. Nf5 {[%emt 0:05:18]} Bxf5 {[%emt 0:02:12]} 19. exf5 {[%emt 0:00:52]} Be5 $1 {[%emt 0:03:09]} 20. Bxe5 {[%emt 0:02:01]} ({Don't blunder} 20. Bxc6+ $2 Kf8 21. Kg2 (21. Bxb7 $2 Bxg3 22. Bxa8 Bh2+ 23. Kh1 Be5+ 24. Kg1 Qf4 $19) 21... bxc6 $19) (20. Qc3 $11 Rd8 21. Qxd4 Rxd4 22. Be4) 20... Qxe5 $17 {[%emt 0:03:41][%csl Gg4,Gh8][%cal Re5h2] [#]} 21. Rfe1 {[%emt 0:00:04]} Qxf5 {[%emt 0:05:16] Threatens to win with ...Rh5. Black is more active.} 22. Re4 {[%emt 0:09:25]} (22. Bxc6+ $17 {was necessary.} bxc6 23. Qxc6+ Kf8 24. Qxa8+ Kg7 25. Qg2 (25. Qxa7 {is a self mate.} Qf3 26. Qd4+ e5)) 22... Qxg5 $19 {[%emt 0:05:34]} 23. Qe2 $2 {[%emt 0:03:41]} (23. Qc1 Qf5 24. Qf4 Qxf4 25. Rxf4) 23... Rg8 {[%emt 0:02:41]} 24. Re1 {[%emt 0:08:10][%cal Oe4g4] [#] Black must now prevent Rxg4!} e6 $1 {[%emt 0:04:50]} 25. f3 {[%emt 0:03:06][%cal Re4g4]} Nf6 {[%emt 0:04:28]} 26. Re5 {[%emt 0:01:48]} Qg7 {[%emt 0:01:16]} 27. f4 {[%emt 0:02:05]} O-O-O {[%emt 0:03:20]} ({Inferior is} 27... Qg3 28. Rxe6+ fxe6 29. Qxe6+ Kd8 30. Qxf6+ Kc8 31. Qf5+ Kb8 32. Qe5+ Kc8 33. Qf5+ Kc7 34. Qe5+ Kc8 35. Qf5+ $11) (27... Ng4 $142 28. Qe4 Nxe5 29. fxe5 O-O-O) 28. Rg5 {[%emt 0:02:45]} Qh6 {[%emt 0:04:01]} 29. Qd2 {[%emt 0:02:35]} (29. Qe3 $142) 29... Qh4 {[%emt 0:02:31]} 30. Re2 $2 {[%emt 0:01:43]} (30. Qf2 {keeps fighting.} Qxf2+ 31. Kxf2) 30... Ng4 {[%emt 0:02:00] And now ...Qh2+ would win.} 31. Be4 {[%emt 0:01:27]} f5 {[%emt 0:01:23]} 32. Bg2 {[%emt 0:00:44]} (32. Qe1 $142 Qxe1+ 33. Rxe1 fxe4 34. Rxe4) 32... Rxg5 {[%emt 0:02:12]} 33. fxg5 {[%emt 0:00:02]} Qg3 {[%emt 0:01:07] ( -> ...Rh8)} 34. d4 {[%emt 0:00:42]} Rh8 {[%emt 0:00:38] Weighted Error Value: White=0.86/Black=0.15 (very precise)} 0-1

[Event "Summer Prague Open-A 2022"]
[Site "Prague"]
[Date "2022.08.11"]
[Round "8.8"]
[White "Schmaltz, Roland"]
[Black "Gloser, David"]
[Result "1-0"]
[ECO "B76"]
[WhiteElo "2466"]
[BlackElo "2221"]
[Annotator "ChessBase"]
[PlyCount "91"]
[EventDate "2022.08.05"]
[EventType "swiss"]
[EventCountry "CZE"]
[SourceTitle "playchess.com"]
[Source "ChessBase"]
[SourceQuality "1"]
[TimeControl "40/5400+30:1800+30"]

1. e4 {[%emt 0:00:49]} c5 {[%emt 0:00:06]} 2. Nf3 {[%emt 0:00:04]} d6 {[%emt 0:00:04]} 3. d4 {[%emt 0:00:04]} cxd4 {[%emt 0:00:04]} 4. Nxd4 {[%emt 0:00:08]} Nf6 {[%emt 0:00:07]} 5. Nc3 {[%emt 0:00:07]} g6 {[%emt 0:00:06]} 6. Be3 {[%emt 0:00:08]} Bg7 {[%emt 0:00:07]} 7. f3 {[%emt 0:00:07]} Nc6 {[%emt 0:00:10]} 8. Qd2 {[%emt 0:00:10]} O-O {[%emt 0:00:08]} 9. O-O-O {[%emt 0:00:08]} d5 {[%emt 0:00:58]} 10. Qe1 {[%emt 0:00:16]} e5 {[%emt 0:00:21]} 11. Nxc6 {[%emt 0:00:07]} bxc6 {[%emt 0:00:03]} 12. exd5 {[%emt 0:00:16]} Nxd5 {[%emt 0:00:14]} 13. Bc4 {[%emt 0:00:35]} Be6 {[%emt 0:06:13]} 14. Ne4 {[%emt 0:00:25]} Qc7 {[%emt 0:04:38]} 15. Bc5 {[%emt 0:00:33]} Rfd8 {[%emt 0:03:59]} 16. g4 {[%emt 0:00:06]} h6 {[%emt 0:01:51]} 17. Rg1 {[%emt 0:06:14]} Rab8 {[%emt 0:05:45]} 18. g5 {[%emt 0:04:22]} h5 {[%emt 0:02:24]} 19. Bb3 {[%emt 0:09:47]} a5 {[%emt 0:05:32]} 20. Kb1 {[%emt 0:03:02]} Rb7 {[%emt 0:03:59]} 21. Ba3 {[%emt 0:02:12]} Ra7 {[%emt 0:02:49]} 22. Nc5 {[%emt 0:14:19]} Bf5 {[%emt 0:03:40]} 23. Rg2 {[%emt 0:01:46]} Nf4 {[%emt 0:07:42]} 24. Rgd2 {[%emt 0:00:15]} Rd4 {[%emt 0:00:29]} 25. Rxd4 {[%emt 0:05:21]} exd4 {[%emt 0:01:15]} 26. Ne4 {[%emt 0:00:40]} a4 {[%emt 0:07:09]} 27. Bc4 {[%emt 0:02:48]} Be6 {[%emt 0:00:45]} 28. Bd6 {[%emt 0:02:24]} Qd8 {[%emt 0:02:52]} 29. Bxe6 {[%emt 0:06:28]} Nxe6 {[%emt 0:00:08]} 30. Qb4 {[%emt 0:00:29]} Ra5 {[%emt 0:05:44]} 31. Be7 {[%emt 0:01:46]} Qa8 {[%emt 0:00:12]} 32. Bf6 {[%emt 0:06:49]} Rb5 {[%emt 0:02:33]} 33. Qa3 {[%emt 0:05:07]} c5 {[%emt 0:06:13]} 34. c4 {[%emt 0:04:52]} Rb8 {[%emt 0:04:31]} 35. Bxg7 {[%emt 0:00:20]} Kxg7 {[%emt 0:00:56]} 36. Nxc5 {[%emt 0:00:38]} Nxg5 {[%emt 0:05:03]} 37. f4 {[%emt 0:09:51]} Ne4 {[%emt 0:04:34]} 38. Ka1 {[%emt 0:02:05]} Kh7 {[%emt 0:03:36]} 39. Nd7 {[%emt 0:03:05]} Nf2 {[%emt 0:05:33]} 40. Rg1 {[%emt 0:00:32]} Rb7 {[%emt 0:04:45]} 41. Qe7 {[%emt 0:30:52]} Kg8 {[%emt 0:32:01]} 42. f5 {[%emt 0:02:17]} Rxd7 {[%emt 0:00:00]} 43. Qxd7 {[%emt 0:00:00]} Qe4 {[%emt 0:00:00]} 44. Qd8+ {[%emt 0:00:00]} Kh7 {[%emt 0:00:00]} 45. Qf6 {[%emt 0:00:00]} Kh6 {[%emt 0:00:00]} 46. Qh8# {[%emt 0:00:00]} 1-0